Cogmind - Beta 13 @@@ ROGUE MODE // 2024.04.18 @ 18:03:15 Player: Destreich Result: Self-destructed Performance ------------- Evolutions (3) 1500 Regions Visited (6) 1200 Robots Destroyed (33) 165 Value Destroyed (788) 788 Prototype IDs (1) 20 Alien Tech Used (0) 0 Bonus (385) 385 TOTAL SCORE: 4058 Bonus ------- Follower Combat Kills 85 Aligned with FarCom 300 Cogmind --------- Core Integrity 568/700 Matter 60/300 Energy 78/100 System Corruption 13% Temperature Cool (0) Movement Walking (127) Location -7/Factory Parts ------- > --- POWER (1) -------- (None) > --- PROPULSION (4) --- Improved Carbon-fiber Leg Improved Titanium Leg (fused) Improved Titanium Leg Improved Titanium Leg > --- UTILITY (6) ------ Improved Heat Sink Medium Storage Unit Hardened Light Armor Plating Hacking Suite > --- WEAPON (2) ------- Gauss Rifle > --- INVENTORY (10) --- Light Deuterium Engine Improved Titanium Leg Improved Terrain Scan Processor Field Laser Field Laser Gauss Rifle Gauss Rifle Heavy Flail Peak State ------------ > --- POWER ------------ Deuterium Engine > --- PROPULSION ------- Improved Titanium Leg Improved Titanium Leg Improved Titanium Leg Improved Titanium Leg > --- UTILITY ---------- Improved Heat Sink Medium Storage Unit Hardened Light Armor Plating Hardened Light Armor Plating Shield Generator Hacking Suite > --- WEAPON ----------- Gauss Rifle Gauss Rifle > --- INVENTORY -------- Light Ion Engine Light Deuterium Engine Improved Carbon-fiber Leg Improved Terrain Scan Processor Hardened Light Armor Plating Field Laser Field Laser Gauss Rifle Gauss Rifle Heavy Flail [Rating: 43] Favorites ----------- Power Light Ion Engine Engine Light Ion Engine Propulsion Improved Titanium Leg Treads Light Treads Leg Improved Titanium Leg Hover Unit Hover Unit Utility Hardened Light Armor Plating Device Improved Heat Sink Storage Large Storage Unit Processor Modified TNC Hackware Hacking Suite Protection Hardened Light Armor Plating Weapon Gauss Rifle Energy Gun Small Laser Ballistic Gun Gauss Rifle Ballistic Cannon Battle Cannon Impact Weapon Heavy Flail Build | -11 -10 -10 -10 -9 -8 -7 ------- Run | Yrd Mat Min Exi Min Mat Fac Slots Evolved 6 | . . . . . 4 2 Power . | . . . . . . . Propulsion 2 | . . . . . 2 . Utility 4 | . . . . . 2 2 Weapon . | . . . . . . . Parts Attached 57 | . 7 4 1 4 14 27 Power 9 | . . 2 . 1 2 4 Engine 9 | . . 2 . 1 2 4 Core . | . . . . . . . Reactor . | . . . . . . . Propulsion 17 | . 3 . . 2 5 7 Treads 2 | . 2 . . . . . Leg 13 | . 1 . . 2 3 7 Wheel . | . . . . . . . Hover 2 | . . . . . 2 . Flight . | . . . . . . . Utility 13 | . 2 1 1 . 3 6 Device 5 | . 1 1 . . 1 2 Storage 3 | . 1 . . . 1 1 Processor 1 | . . . 1 . . . Hackware 1 | . . . . . 1 . Protection 3 | . . . . . . 3 Artifact . | . . . . . . . Weapon 18 | . 2 1 . 1 4 10 Energy Gun 7 | . 1 . . 1 4 1 Energy Cannon . | . . . . . . . Ballistic Gun 7 | . 1 . . . . 6 Ballistic Cannon 1 | . . 1 . . . . Launcher . | . . . . . . . Special Weapon . | . . . . . . . Impact Weapon 3 | . . . . . . 3 Slashing Weapon . | . . . . . . . Piercing Weapon . | . . . . . . . Special Melee Weapon . | . . . . . . . Unidentified Prototypes 1 | . . . 1 . . . Parts Lost 11 | . 1 1 . 2 2 5 Power 4 | . . 1 . 1 1 1 Propulsion 2 | . . . . 1 1 . Utility 3 | . . . . . . 3 Weapon 2 | . 1 . . . . 1 Highest Loss Streak 4 | . 1 1 . 2 2 4 To Critical Strikes . | . . . . . . . Average Slot Usage (%) 96 | . 94 99 99 94 83 97 Engine 10 | . 14 13 14 11 8 6 Treads 10 | . 13 28 28 21 . . Leg 17 | . 14 . . 2 26 29 Hover 1 | . . . . . 9 . Device 11 | . 8 14 7 . 4 14 Storage 10 | . 14 14 14 14 9 7 Processor 2 | . . . 6 14 9 1 Hackware 3 | . . . . . 1 7 Protection 5 | . . . . . . 11 Energy Gun 8 | . 19 14 14 14 13 1 Ballistic Gun 5 | . 8 . . . . 11 Ballistic Cannon 5 | . . 13 14 14 1 . Naked Turns . | . . . . . . . Heaviest Build 40 | 10 26 28 28 29 15 40 Greatest Support 80 | 20 40 40 40 40 45 80 Greatest Overweight (x) 1 | . . . . 1 1 . Average Overweight (x) . | . . . . . . . Largest Inventory Capacity 15 | . 15 15 15 15 15 10 Average Capacity 11 | . 11 15 15 15 8 9 Most Carried 15 | . 11 14 15 15 12 10 Average Carried 10 | . 8 12 14 14 6 8 Final Capacity 15 | 8 15 15 15 15 8 10 Final Carried 15 | 6 10 14 15 13 8 8 Class Distribution -------------------- 72% | Mutant 27% | Scavenger-Mutant Dominant Class ---------------- Mutant | -10/Materials Mutant | -10/Mines Mutant | -10/Exiles Mutant | -9/Mines Scavenger-Mutant | -8/Materials Mutant | -7/Factory Resources | -11 -10 -10 -10 -9 -8 -7 ----------- Run | Yrd Mat Min Exi Min Mat Fac Matter Collected 937 | 200 84 111 . 72 144 326 Remotely . | . . . . . . . Salvage Created 1096 | . 277 142 . 197 155 325 Parts 42 | . 12 9 . 4 12 5 Haulers Intercepted 1 | . . . . . 1 . Recyclers Shooed 4 | . . 2 . . . 2 Parts Field Recycled . | . . . . . . . Retrieved Matter . | . . . . . . . Parts Self-Destructed . | . . . . . . . Prevented . | . . . . . . . Kills | -11 -10 -10 -10 -9 -8 -7 ------- Run | Yrd Mat Min Exi Min Mat Fac Combat Hostiles Destroyed 23 | . 6 4 . 2 7 4 Guns 16 | . 6 2 . 1 5 2 Cannons 5 | . . 2 . 1 2 . Classes Destroyed 11 | . 2 2 . . 2 5 Worker 1 | . . . . . . 1 Builder 2 | . . . . . . 2 Hauler 1 | . . . . . 1 . Recycler 4 | . . 1 . 2 . 1 Operator 1 | . . . . . . 1 Watcher 1 | . 1 . . . . . Swarmer 9 | . . 3 . . 6 . Grunt 11 | . 6 1 . 2 . 2 Specialist 1 | . . . . . . 1 Hunter 1 | . . . . . 1 . Programmer 1 | . . . . . . 1 Best Kill Streak 4 | . 4 3 . 4 3 3 Combat Bots Only 4 | . 4 3 . 2 3 1 Max Kills in Single Turn 1 | . 1 1 . 1 1 1 Gunslinging . | . . . . . . . Exploded . | . . . . . . . Melee . | . . . . . . . Uniques/NPCs Destroyed . | . . . . . . . Combat | -11 -10 -10 -10 -9 -8 -7 -------- Run | Yrd Mat Min Exi Min Mat Fac Hostile Shots Fired 276 | . 35 27 . 19 36 159 Missed 75 | . 7 6 . 4 10 48 Damage Taken 2561 | . 390 197 . 191 258 1525 Core 282 | . 62 20 . 50 18 132 Absorbed by Shields 200 | . . . . . . 200 Regen/Repaired (Parts) 46 | . . . . . . 46 Core Remaining (%) 81 | 100 . . . 47 96 . Volleys Fired 107 | . 26 17 . 11 20 33 Largest 2 | . 2 2 . 2 2 2 Hottest 128 | . 80 79 . 104 128 126 Shots Fired 206 | . 52 34 . 22 33 65 Gun 172 | . 52 17 . 11 27 65 Cannon 34 | . . 17 . 11 6 . Launcher . | . . . . . . . Special . | . . . . . . . Kinetic 116 | . 19 17 . 11 6 63 Thermal 90 | . 33 17 . 11 27 2 Explosive . | . . . . . . . Electromagnetic . | . . . . . . . Robot Hit Streak 23 | . 23 6 . 5 4 10 Robot Miss Streak 5 | . 3 5 . 2 2 2 Penetration Max . | . . . . . . . Secondary Targets 1 | . . . . . . 1 Max Gunslinging Chain 1 | . . . . . . 1 Shots Hit Robots 148 | . 37 19 . 13 21 58 Core Hits 44 | . 17 5 . 7 9 6 Critical Kills . | . . . . . . . Critical Parts Destroyed 5 | . . . . . . 5 Critical Strikes 6 | . . . . . 1 5 Destroy 2 | . . . . . . 2 Blast 1 | . . . . . 1 . Smash 3 | . . . . . . 3 Melee Attacks 29 | . . . . . . 29 Impact 29 | . . . . . . 29 Slashing . | . . . . . . . Piercing . | . . . . . . . Sneak Attacks 6 | . . . . . . 6 Combat Hostiles . | . . . . . . . Follow-up Attacks . | . . . . . . . Damage Inflicted 3289 | . 359 338 . 231 356 2005 Guns 1687 | . 359 120 . 89 270 849 Cannons 444 | . . 216 . 142 86 . Explosions . | . . . . . . . Melee 1117 | . . . . . . 1117 Ramming 41 | . . 2 . . . 39 Kinetic 1347 | . 89 216 . 142 86 814 Thermal 784 | . 270 120 . 89 270 35 Explosive . | . . . . . . . Electromagnetic . | . . . . . . . Impact 1117 | . . . . . . 1117 Slashing . | . . . . . . . Piercing . | . . . . . . . Highest Corruption 13 | . . . . . . 13 Average Corruption 5 | . . . . . . 5 Corruption Purged . | . . . . . . . Corruption Blocked 8 | . . . . . . 8 Effects 23 | . . . . . . 23 Message Errors 5 | . . . . . . 5 Matter Fused 10 | . . . . . . 10 Heat Flow Errors 2 | . . . . . . 2 Energy Discharges 1 | . . . . . . 1 Parts Fused 1 | . . . . . . 1 Data Loss (minor) 2 | . . . . . . 2 Data Loss (major) 1 | . . . . . . 1 Misdirections 1 | . . . . . . 1 Overload Shots . | . . . . . . . Overflow Damage 486 | . . 5 . . . 481 Projectiles 5 | . . 5 . . . . Explosions . | . . . . . . . Melee 481 | . . . . . . 481 Knockbacks 10 | . . 2 . . 2 6 Impact 6 | . . . . . . 6 Kinetic 4 | . . 2 . . 2 . Secondary . | . . . . . . . Self-Inflicted Damage . | . . . . . . . Shots . | . . . . . . . Rammed 1 | . . 1 . . . . Targets Rammed 14 | . . 1 . . . 13 Kicked 13 | . . . . . . 13 Crushed . | . . . . . . . Highest Temperature 204 | . 120 99 . 102 180 204 Average Temperature 49 | . 35 44 . 52 52 104 Received Heat Transfer 511 | . 225 42 . 111 . 133 Siege Activations . | . . . . . . . Robots Corrupted . | . . . . . . . Combat Hostiles . | . . . . . . . Parts Fried 10 | . . . . . . 10 Impact Corruptions 15 | . . . . . . 15 Robots Melted . | . . . . . . . Combat Hostiles . | . . . . . . . Parts Melted 6 | . 2 . . . 3 1 Heat Transferred 1790 | . 625 275 . 187 629 74 Parts Sabotaged . | . . . . . . . Parts Stolen . | . . . . . . . Parts Stripped . | . . . . . . . Power Chain Reactions . | . . . . . . . Alert | -11 -10 -10 -10 -9 -8 -7 ------- Run | Yrd Mat Min Exi Min Mat Fac Peak Influence 225 | . 217 98 . 60 225 80 Initial 84 | . . 84 . . 23 21 Average 51 | . 136 56 . 14 83 27 Maximum Alert Level 1 | . 1 . . . 1 . Low Security (%) 96 | . 73 100 . 100 94 100 Level 1 3 | . 26 . . . 5 . Level 2 . | . . . . . . . Level 3 . | . . . . . . . Level 4 . | . . . . . . . Level 5 . | . . . . . . . High Security . | . . . . . . . Max Security . | . . . . . . . Squads Dispatched 9 | . 4 1 . . . 4 Investigation 2 | . 1 . . . . 1 Extermination 2 | . . . . . . 2 Reinforcement 4 | . 3 . . . . 1 Assault 1 | . . 1 . . . . Garrison . | . . . . . . . Intercept . | . . . . . . . Searches Triggered . | . . . . . . . Construction Impeded . | . . . . . . . Haulers Reinforced . | . . . . . . . Active Scanning Responses . | . . . . . . . Cargo Convoy Interrupts 1 | . . . . . . 1 Stealth | -11 -10 -10 -10 -9 -8 -7 --------- Run | Yrd Mat Min Exi Min Mat Fac Distress Signals . | . . . . . . . Communications Jammed . | . . . . . . . Distress Signals . | . . . . . . . Times Spotted 40 | . 10 7 . 2 13 8 Peak Tracking Total 4 | . 4 4 . 2 4 2 Tactical Retreats 3 | . 1 . . . . 2 Traps | -11 -10 -10 -10 -9 -8 -7 ------- Run | Yrd Mat Min Exi Min Mat Fac Traps Triggered 4 | . 1 . . . 1 2 Indirectly . | . . . . . . . Trap Hack Attempts . | . . . . . . . Triggered . | . . . . . . . Disarmed . | . . . . . . . Reprogrammed . | . . . . . . . Reused . | . . . . . . . Traps Extracted . | . . . . . . . Installed . | . . . . . . . Triggered 2 | . . . . . . 2 Machines | -11 -10 -10 -10 -9 -8 -7 ---------- Run | Yrd Mat Min Exi Min Mat Fac Machines Disabled 1 | . . . . . . 1 Max in Single Turn 1 | . . . . . . 1 Garrison Access 1 | . . . . . 1 . Machines Repaired . | . . . . . . . Machines Dismantled . | . . . . . . . Machines Sabotaged . | . . . . . . . Overloaded Fab Kills . | . . . . . . . Hacking | -11 -10 -10 -10 -9 -8 -7 --------- Run | Yrd Mat Min Exi Min Mat Fac Machines Accessed 9 | . 1 . . . 5 3 Terminals 5 | . 1 . . . 3 1 Fabricators 1 | . . . . . . 1 Repair Stations 2 | . . . . . 1 1 Recycling Units . | . . . . . . . Scanalyzers . | . . . . . . . Garrison Access 1 | . . . . . 1 . Total Hacks 19 | . 3 . . . 10 6 Successful 10 | . . . . . 6 4 Failed 9 | . 3 . . . 4 2 Catastrophic 2 | . . . . . 1 1 Database Lockouts . | . . . . . . . Manual 10 | . . . 1 . 7 2 Terminals 13 | . 3 . . . 8 2 Fabricators 2 | . . . . . . 2 Repair Stations 3 | . . . . . 1 2 Recycling Units . | . . . . . . . Scanalyzers . | . . . . . . . Garrison Access 1 | . . . . . 1 . Terminal Hacks 3 | . . . . . 3 . Record 1 | . . . . . 1 . Part Schematic 1 | . . . . . 1 . Fabricator Index 1 | . . . . . 1 . Fabricator Hacks 2 | . . . . . . 2 Load Schematic 1 | . . . . . . 1 Build 1 | . . . . . . 1 Repair Station Hacks 2 | . . . . . . 2 Scan Component 1 | . . . . . . 1 Repair 1 | . . . . . . 1 Recycling Unit Hacks . | . . . . . . . Scanalyzer . | . . . . . . . Garrison Access Hacks 1 | . . . . . 1 . Seal Access 1 | . . . . . 1 . Unauthorized Hacks 2 | . . . . . 2 . Terminals 2 | . . . . . 2 . Botnet 2 | . . . . . 2 . Fabricators . | . . . . . . . Repair Stations . | . . . . . . . Recycling Units . | . . . . . . . Scanalyzers . | . . . . . . . Garrison Access . | . . . . . . . Data Cores Recovered 1 | . . . . . . 1 Used 1 | . . . . . . 1 Hacking Detections 8 | . 1 . . . 4 3 Full Trace Events 1 | . . . . . . 1 Feedback Events . | . . . . . . . Feedback Blocked . | . . . . . . . Robot Schematics Acquired . | . . . . . . . Robots Built . | . . . . . . . Authchips . | . . . . . . . Time . | . . . . . . . Total Robot Build Rating . | . . . . . . . Part Schematics Acquired 1 | . . . . . 1 . Parts Built 2 | . . . . . . 2 Authchips . | . . . . . . . Time 62 | . . . . . . 62 Total Part Build Rating 4 | . . . . . . 4 Parts Repaired 1 | . . . . . . 1 Time 38 | . . . . . . 38 Parts Recycled . | . . . . . . . Recycled Matter . | . . . . . . . Retrieved Matter . | . . . . . . . Retrieved Components . | . . . . . . . Parts Scanalyzed . | . . . . . . . Part Schematics Acquired . | . . . . . . . Parts Damaged . | . . . . . . . Bothacking | -11 -10 -10 -10 -9 -8 -7 ------------ Run | Yrd Mat Min Exi Min Mat Fac Used RIF Installer . | . . . . . . . Robots Hacked . | . . . . . . . Non-combat . | . . . . . . . Combat . | . . . . . . . Robot Hacks Applied . | . . . . . . . Relay Couplers Released . | . . . . . . . Fabnet Peak Effective % . | . . . . . . . Robots Rewired . | . . . . . . . Allies Hacked . | . . . . . . . Hacks Repelled . | . . . . . . . Allies | -11 -10 -10 -10 -9 -8 -7 -------- Run | Yrd Mat Min Exi Min Mat Fac Total Allies 1 | . . 1 . . . . Largest Group 1 | . . 1 1 1 . . Highest-Rated Group 31 | . . 31 31 31 . . Highest-Rated Ally 31 | . . 31 31 31 . . Total Orders . | . . . . . . . Ally Attacks 12 | . . 9 . 3 . . Total Damage 165 | . . 123 . 42 . . Kills 3 | . . 3 . . . . Allies Corrupted . | . . . . . . . Allies Melted . | . . . . . . . Intel | -11 -10 -10 -10 -9 -8 -7 ------- Run | Yrd Mat Min Exi Min Mat Fac Robot Analysis Total . | . . . . . . . Derelict Logs Recovered 1 | . . 1 . . . . Drone Launches . | . . . . . . . Drone Recoveries . | . . . . . . . Exploration | -11 -10 -10 -10 -9 -8 -7 ------------- Run | Yrd Mat Min Exi Min Mat Fac Turns Passed 4526 | . 331 1056 342 207 630 1960 Spaces Moved 2578 | 1 170 622 213 87 464 1021 Core . | . . . . . . . Treads 985 | . 73 622 213 77 . . Legs 1350 | 1 97 . . 10 221 1021 Wheels . | . . . . . . . Hover 243 | . . . . . 243 . Flight . | . . . . . . . Fastest Speed 76 | 120 120 160 160 160 76 120 Average Speed 134 | 120 137 160 160 173 101 125 Slowest Speed 240 | 120 160 160 160 240 136 130 Overloaded Moves . | . . . . . . . Propulsion Burnouts . | . . . . . . . Robots Hopped . | . . . . . . . Cave-ins Triggered . | . . . . . . . Exploration Rate (%) 35 | 1 41 93 42 12 33 28 Regions Visited 6 Branch Regions 3 Pre-discovered Areas 1 | . . 1 . . . . Known Exits Taken 1 | . . . . . 1 . Unknown Exits Taken 5 | 1 1 1 1 1 . . Scrap Searched 2 | . . 2 . . . . Spaces Dug . | . . . . . . . Terrain Destroyed 7 | . . 5 . 2 . . Melee . | . . . . . . . Projectile 7 | . . 5 . 2 . . AOE . | . . . . . . . Terrain Rammed . | . . . . . . . Walls Destroyed . | . . . . . . . Machines Disabled . | . . . . . . . Actions | -11 -10 -10 -10 -9 -8 -7 --------- Run | Yrd Mat Min Exi Min Mat Fac Total 3384 | . 219 647 214 122 593 1589 Wait 547 | . 10 1 . 19 74 443 Move 2572 | . 169 621 212 86 463 1021 Hop . | . . . . . . . Pick Up 19 | . 5 1 . . 9 4 Fast Attach 15 | . 1 3 1 1 2 7 Attach 13 | . 1 . . 2 8 2 Detach 6 | . . 2 1 . 1 2 Swap 29 | . 5 1 . 1 4 18 Drop 32 | . 2 . . 2 12 16 Fire 107 | . 26 17 . 11 20 33 Melee 29 | . . . . . . 29 Ram 1 | . . . . . . 1 Kick 13 | . . . . . . 13 Crush 1 | . . 1 . . . . Escape Stasis . | . . . . . . . Rewire . | . . . . . . . Trap . | . . . . . . . Miscellaneous . | . . . . . . . Route ------- -11/Scrapyard -10/Materials (discovered 2 exits: [*Mat] / [*Min]) -10/Mines (discovered 4 exits: [*Mat x2] / *Exi / [*Sub]) -10/Exiles -9/Mines -8/Materials -7/Factory History --------- Turn | Location | Event 1 | -11/Scrapyard | Discovered new exit (range 0) 1 | -11/Scrapyard | Entered Materials 292 | -10/Materials | Discovered new exit (range 9) 311 | -10/Materials | Build established: Mutant 321 | -10/Materials | Discovered new exit (range 8) 332 | -10/Materials | Entered Mines 369 | -10/Mines | A weapon hastily lodged in a ceiling crevice suddenly fell to the ground 687 | -10/Mines | Found a hidden stash of uninstalled traps 695 | -10/Mines | Learned 2 Materials zone layouts 853 | -10/Mines | Discovered new exit (range 11) 1060 | -10/Mines | Discovered new exit (range 15) 1165 | -10/Mines | Met a Derelict testing a Signal Generator 1223 | -10/Mines | Discovered new exit (range 8) 1339 | -10/Mines | Learned location of Storage (-7) 1376 | -10/Mines | Deemed a non-threat by the Exiles lab entrance 1378 | -10/Mines | Discovered new exit (range 5) 1388 | -10/Mines | Entered Exiles 1388 | -10/Exiles | Accompanied by 1 ally 1427 | -10/Exiles | Met 8R-AWN 1456 | -10/Exiles | Met EX-HEX 1502 | -10/Exiles | Met EX-BIN 1521 | -10/Exiles | Aligned with FarCom system 1523 | -10/Exiles | Given EX-Vault access code 1560 | -10/Exiles | Opened EX-Vault 1570 | -10/Exiles | Found Prototype Processor 1570 | -10/Exiles | Identified Modified TNC 1606 | -10/Exiles | Warned to stay clear of 0b10 Research branches 1709 | -10/Exiles | Discovered new exit (range 15) 1730 | -10/Exiles | Left Exiles lab with Modified TNC 1730 | -10/Exiles | Entered Mines 1730 | -9/Mines | Accompanied by 1 ally 1884 | -9/Mines | Core integrity fell below 50% 1924 | -9/Mines | Discovered new exit (range 8) 1937 | -9/Mines | Entered Materials 1937 | -8/Materials | Evolved 4 slots: Propulsion x2, Utility x2 1938 | -8/Materials | Identified exit to Factory 2215 | -8/Materials | Build established: Scavenger-Mutant 2567 | -8/Materials | Entered Factory 2567 | -7/Factory | Evolved 2 slots: Utility x2 2673 | -7/Factory | Fabricated Imp. Hover Unit? 3100 | -7/Factory | Repaired Carbon-fiber Leg 3267 | -7/Factory | Cargo convoy interrupted 3508 | -7/Factory | Build established: Mutant 4501 | -7/Factory | System corruption reached 10% 4527 | -7/Factory | Self-destructed Last Messages --------------- 04462_ System corrupted: FCS attempts to trigger Gauss Rifle. 04482_ C-30 ARC bursts open, deploying its payload. 04482_ P-60 Hacker unfolds itself. 04487_ Shield Generator destroyed. 04490_ Assembly Bed disabled. 04500_ Kicked P-60 Hacker out of the way. 04502_ System corrupted: Matter fused (-6). 04503_ Kicked P-60 Hacker out of the way. 04503_ Hrd. Light Armor Plating destroyed. 04504_ Kicked P-60 Hacker out of the way. 04505_ Kicked P-60 Hacker. 04508_ Kicked P-60 Hacker out of the way. 04511_ K-01 Serf collects debris. 04513_ Kicked K-01 Serf. 04514_ Kicked K-01 Serf out of the way. 04515_ Deuterium Engine destroyed. 04520_ Kicked P-60 Hacker out of the way. 04524_ 6F|:4VTLXLTGMWJQLH < 04524_ Kicked P-60 Hacker out of the way. 04524_ Gauss Rifle destroyed. Map ----- +----------------------------------------------------+ | ?????????????????????????????????????????????????? | | ?????????????????????????????????????????????????? | | ?????????????????????????????????????????????????? | | ?????????????????????????????????????????????????? | | ?????????????????????????????????????????????????? | | ?????????????????????????????????????????????????? | | ?????????????????????????????????????????????????? | | ?????????????????????????????????????????????????? | | ?????????????????????????????????????????????????? | | ?????????????????????????????????????????????????? | | ?????????????????????????????????????????????????? | | ?????????????????????????????????????????????????? | | ?????????????????????????????????????????????????? | | ?????????????????????????????????????????????????? | | ??????????????#####+##########???????????????????? | | ??????????????? ########????????????? | | ???????????????? # ! ????????????? | | ??????????g?????? # """"????????????? | | ??????????g????" # """"????????????? | | ???????????????T """""" # """"????????????? | | ?????????#?g??"" """""" # """" ???????????? | | ?????????# "" """""" ! # """" ???????????? | | ?????????# """""" # """" #?????????? | | ?????????# " + #?????????? | | ?????????# "%" """"" ##############??????? | | ?????????# """""" @ # ! ! #??????? | | ?????????# """""" # #??????? | | ??????????? """""" p # """ #??????? | | ?????????? # """" [[!#??????? | | ??????????? """""" # """" [[!#??????? | | ?????????? """""" # """" [!!#??????? | | ???????? """""" + """" #??????? | | ?????? """""" # """" #??????? | | ???? # """" #??????? | | ??# """""" # #??????? | | ??# """""" # #??????? | | ?? """""" # #??????? | | ??? """""" ##############??????? | | ???? #???????????????????? | | ????? """""" #???????????????????? | | ??????? """""" #???????????????????? | | ????????# """""" ##???????????????????? | | ????????# """""" #????????????????????? | | ????????+ #????????????????????? | | ???????????# #????????????????????? | | ???????????# #????????????????????? | | ???????????# #########+###+####??????????????????? | | ???????????# #???????# ???????????? | | ???????????# #???????# [ ???????????? | | ???????????# #???????# ???????????? | +----------------------------------------------------+ Best States ------------- Heat Dissipation 48 Energy Generation 14 Energy Capacity 275 Matter Stores 300 Matter Capacity 300 Sight Range 16 Terrain Scan Density 10 Armor Coverage 300 Evasion (%) 55 Recoil Reduction 2 Offensive Hacking 10 Item Schematics ----------------- Imp. Hover Unit | -8/Materials | Hacked Robot Schematics ------------------ None Fabricated ------------ Imp. Hover Unit | x2 | -7/Factory Alien Tech Used ----------------- None Achievements -------------- Dynamic Key Challenges ------------ None Game ------ Seed LightpackAssembledCanceller Manual? 0 Play Time 00:36:26 Cumulative 11.1 hours Start 2024.04.18 @ 17:27:23 End 2024.04.18 @ 18:03:15 Sessions 1 Manual Loads 0 Difficulty Rogue Special Mode None Game No. 26 Rogue 24 Adventurer 2 Explorer 0 Win Type - Total 0 Types 0/0/0/0/0/0/0/0/0 Lore% 17 Gallery% 21 Achievement% 19 Wizard Run 0 Options --------- Layout 0 ASCII 0 Keyboard 0 Movement Vi Keybinds 0 Fullscreen 2 Font 24/Terminus Map View 76x50 Zoom Use 0% Tactical HUD 1 Map Filters NONE Filters NONE Steam 1 RUN: bd888561-fa31-4071-9b89-0fc0e6eae32a